bitfinex/quotes_BTCUSD_20240613
["timestamp","ask_amount","ask_price","bid_price","bid_amount"]
[1718271994878,0.000946,67262.0,67261.0,0.37708493]
[1718271995089,0.000946,67262.0,67261.0,0.27708493]
[1718271995090,0.0185313,67262.0,67261.0,0.27708493]
[1718271995303,0.000946,67262.0,67261.0,0.27708493]
[1718271996175,0.000946,67262.0,67261.0,0.53358493]
[1718271996598,0.000946,67262.0,67261.0,0.43337233]
[1718271996820,0.000946,67262.0,67261.0,0.55669543]
[1718271997045,0.000946,67262.0,67261.0,0.67250102]
[1718271997486,0.000946,67262.0,67261.0,0.58357366]
[1718271997703,0.000946,67262.0,67261.0,0.66037366]
[1718271997929,0.000946,67262.0,67261.0,0.66036289]
[1718271998356,0.000946,67262.0,67261.0,0.7270149]
[1718271998572,0.000946,67262.0,67261.0,0.7390149]
[1718271999001,0.000946,67262.0,67261.0,0.8433149]
[1718271999252,0.000946,67262.0,67261.0,0.86553223]
[1718271999466,0.000946,67262.0,67261.0,0.90174957]
[1718271999678,0.000946,67262.0,67261.0,0.79066289]
[1718271999884,0.000946,67262.0,67261.0,0.89774957]
[1718272000331,0.000946,67262.0,67261.0,1.01167677]
[1718272000790,0.4774,67288.0,67275.0,0.1]
[1718272000791,0.43295979,67288.0,67275.0,0.1]
[1718272000999,0.43295979,67288.0,67282.0,0.00943063]
[1718272001233,0.16531073,67287.0,67282.0,0.14431993]
[1718272001444,0.0656,67284.0,67275.0,0.1565]
[1718272001650,0.0656,67284.0,67276.0,0.26761512]
[1718272001891,0.0656,67284.0,67278.0,0.00943063]
[1718272001892,0.0821,67282.0,67278.0,0.00943063]
[1718272002112,0.0821,67282.0,67279.0,0.14431993]
[1718272002335,0.01775485,67281.0,67279.0,0.14431993]
[1718272002777,0.01775485,67281.0,67280.0,0.00943063]
[1718272002997,0.01775485,67281.0,67280.0,0.15375056]
[1718272003240,0.01775485,67281.0,67280.0,0.15347156]
[1718272003504,0.0623,67287.0,67286.0,0.00915163]
[1718272003924,0.08005485,67287.0,67286.0,0.00915163]
[1718272004130,0.0623,67287.0,67286.0,0.00915163]
[1718272004338,0.08005485,67287.0,67286.0,0.00915163]
[1718272004572,0.08005485,67287.0,67285.0,0.00915163]
[1718272004786,0.01775485,67287.0,67285.0,0.14431993]
[1718272005004,0.16635485,67287.0,67285.0,0.14431993]
[1718272005234,0.1486,67287.0,67285.0,0.15347156]
[1718272005439,0.01777064,67286.0,67285.0,0.14431993]
[1718272006533,0.01777064,67286.0,67285.0,0.15347156]
[1718272006753,0.01777064,67286.0,67285.0,0.15647156]
[1718272007444,0.01777064,67286.0,67285.0,0.14731993]
[1718272008078,0.01777064,67286.0,67285.0,0.15031993]
[1718272008719,0.01777064,67286.0,67285.0,0.15947156]
[1718272008937,0.000946,67290.0,67289.0,0.00915163]
[1718272009168,0.000946,67290.0,67288.0,0.00915163]
[1718272009384,0.01871664,67290.0,67288.0,0.01509536]
[1718272009591,0.000946,67290.0,67289.0,0.00915163]
[1718272009807,0.01777064,67289.0,67288.0,0.01509536]
[1718272010026,0.000946,67290.0,67289.0,0.00915163]
[1718272010227,0.000946,67290.0,67289.0,0.15347156]
[1718272012400,0.000946,67290.0,67289.0,0.25347156]
[1718272012620,0.000946,67290.0,67289.0,0.15347156]
[1718272013277,0.000946,67290.0,67289.0,0.15319256]
[1718272013956,0.000946,67290.0,67289.0,0.14431993]
[1718272014176,0.000946,67290.0,67289.0,0.15319256]
[1718272014637,0.000946,67290.0,67289.0,0.25319256]
[1718272015074,0.000946,67290.0,67289.0,0.37645916]
[1718272015502,0.000946,67290.0,67289.0,0.27645916]
[1718272015715,0.000946,67290.0,67289.0,0.37645916]
[1718272015893,0.000946,67290.0,67289.0,0.27645916]
[1718272016549,0.000946,67290.0,67289.0,0.26758653]
[1718272016755,0.143446,67290.0,67289.0,0.26758653]
[1718272016971,0.143446,67290.0,67289.0,0.15319256]
[1718272017400,0.16129783,67290.0,67289.0,0.14431993]
[1718272017821,0.01879783,67290.0,67289.0,0.15319256]
[1718272018044,0.01879783,67290.0,67289.0,0.14431993]
[1718272018274,0.01879783,67290.0,67281.0,0.00887263]
[1718272018514,0.01879783,67290.0,67284.0,0.00887263]
[1718272018739,0.01879783,67290.0,67285.0,0.15912869]
[1718272018959,0.01879783,67290.0,67285.0,0.15025606]
[1718272020265,0.01879783,67290.0,67287.0,0.00887263]
[1718272020477,0.01879783,67290.0,67285.0,0.15025606]
[1718272020478,0.01879783,67290.0,67289.0,0.00887263]
[1718272020689,0.01879783,67290.0,67289.0,0.15913633]
[1718272020921,0.01879783,67290.0,67289.0,0.25913633]
[1718272021134,0.01879783,67290.0,67289.0,0.38242]
[1718272021135,0.000946,67290.0,67289.0,0.38242]
[1718272021559,0.000946,67290.0,67289.0,0.28242]
[1718272021988,0.000946,67290.0,67289.0,0.43297623]
[1718272022196,0.000946,67290.0,67289.0,0.2676036]
[1718272022404,0.000946,67290.0,67289.0,0.14431993]
[1718272022669,0.01879706,67290.0,67289.0,0.14431993]
[1718272023118,0.01879706,67290.0,67281.0,0.00887263]
[1718272023119,0.081,67289.0,67281.0,0.05887263]
[1718272023325,0.01879706,67290.0,67282.0,0.26732034]
[1718272023326,0.081,67287.0,67282.0,0.26732034]
[1718272023551,0.081,67287.0,67282.0,0.14404093]
[1718272024208,0.08269618,67287.0,67282.0,0.14404093]
[1718272024419,0.000946,67290.0,67274.0,0.01740829]
[1718272024420,0.0832,67285.0,67274.0,0.01740829]
[1718272024635,0.0832,67285.0,67268.0,0.1165]
[1718272024636,0.00169618,67283.0,67275.0,0.14431993]
[1718272024849,0.00169618,67279.0,67276.0,0.12329639]
[1718272025071,0.0832,67278.0,67276.0,0.26761632]
[1718272025292,0.0649,67277.0,67276.0,0.14431993]
[1718272025946,0.08268086,67277.0,67276.0,0.14431993]
[1718272026176,0.08268086,67277.0,67276.0,0.17231993]
[1718272026592,0.08268086,67277.0,67276.0,0.14431993]
[1718272026798,0.08268086,67277.0,67276.0,0.14831993]
[1718272027454,0.08268086,67277.0,67276.0,0.004]
[1718272027455,0.08437704,67277.0,67276.0,0.004]
[1718272028109,0.08268086,67277.0,67276.0,0.004]
[1718272028319,0.08268086,67277.0,67269.0,0.00114051]
[1718272028535,0.01778086,67277.0,67276.0,0.14731993]
[1718272028794,0.0832,67278.0,67276.0,0.14731993]
[1718272028795,0.0832,67278.0,67276.0,0.2726266]
[1718272029002,0.0832,67278.0,67276.0,0.14631993]
[1718272029217,0.0832,67278.0,67276.0,0.14431993]
[1718272029218,0.01778086,67277.0,67276.0,0.14431993]
[1718272029452,0.01778086,67277.0,67276.0,0.2676252]
[1718272029658,0.01778086,67277.0,67276.0,0.26862709]
[1718272030114,0.01778086,67277.0,67276.0,0.14516993]
[1718272030577,0.01778086,67277.0,67276.0,0.14616993]
[1718272031016,0.01778086,67277.0,67276.0,0.26947799]
[1718272031436,0.00169618,67283.0,67276.0,0.26947799]
[1718272031646,0.00169618,67283.0,67276.0,0.14616993]
[1718272031846,0.0601,67284.0,67276.0,0.14616993]
[1718272031847,0.01947704,67282.0,67276.0,0.14616993]
[1718272032051,0.01947704,67282.0,67276.0,0.14516993]
[1718272032259,0.00169618,67281.0,67276.0,0.14516993]
[1718272032429,0.00169618,67281.0,67277.0,0.00303377]
[1718272032644,0.0601,67284.0,67277.0,0.00303377]
[1718272032852,0.01724943,67280.0,67277.0,0.00303377]
[1718272033061,0.0601,67284.0,67277.0,0.00303377]
[1718272033297,0.01724943,67279.0,67277.0,0.00303377]
[1718272033534,0.00169618,67283.0,67277.0,0.00246977]
[1718272033745,0.01894561,67283.0,67277.0,0.00246977]
[1718272034015,0.01724943,67283.0,67277.0,0.00246977]
[1718272035549,0.01724943,67283.0,67277.0,0.00377075]
[1718272035941,0.00169618,67282.0,67277.0,0.00377075]
[1718272036147,0.01894561,67283.0,67277.0,0.00377075]
[1718272036356,0.01724711,67281.0,67277.0,0.00377075]
[1718272036568,0.0601,67284.0,67277.0,0.00377075]
[1718272036783,0.01724711,67280.0,67277.0,0.00377075]
[1718272037036,0.0601,67284.0,67277.0,0.00377075]
[1718272037242,0.01724711,67279.0,67277.0,0.00377075]
[1718272037465,0.0601,67284.0,67277.0,0.00377075]
[1718272037897,0.01724186,67283.0,67277.0,0.00377075]
[1718272038263,0.01724186,67283.0,67277.0,0.01264338]
[1718272038484,0.01724186,67283.0,67277.0,0.00377075]
[1718272039278,0.01724186,67283.0,67277.0,0.00594481]
[1718272040065,0.01724186,67283.0,67281.0,0.00887263]
[1718272040267,0.01724186,67283.0,67282.0,0.15026438]
[1718272040493,0.01724186,67283.0,67276.0,0.00085]
[1718272040700,0.01724186,67283.0,67277.0,0.14431993]
[1718272041983,0.145646,67290.0,67278.0,0.15172058]
[1718272042132,0.145646,67290.0,67280.0,0.00887263]
[1718272042338,0.145646,67290.0,67281.0,0.01291618]
[1718272042339,0.01724412,67289.0,67281.0,0.01291618]
[1718272043003,0.0189403,67289.0,67281.0,0.00591618]
[1718272043188,0.01724412,67289.0,67281.0,0.00591618]
[1718272043391,0.01724412,67289.0,67282.0,0.004]
[1718272043552,0.0189403,67289.0,67283.0,0.00569745]
[1718272043767,0.00169618,67286.0,67278.0,0.0785]
[1718272043966,0.00169618,67286.0,67281.0,0.005]
[1718272044166,0.145646,67290.0,67282.0,0.00172685]
[1718272044368,0.01724922,67285.0,67282.0,0.00172685]
[1718272044624,0.145646,67290.0,67282.0,0.00594443]
[1718272044821,0.01724922,67284.0,67283.0,0.003]
[1718272045034,0.145646,67290.0,67283.0,0.003]
[1718272045035,0.14734218,67290.0,67283.0,0.003]
[1718272045236,0.01724922,67284.0,67283.0,0.003]
[1718272045575,0.01725233,67284.0,67283.0,0.003]
[1718272045750,0.14734218,67290.0,67283.0,0.003]
[1718272046150,0.14734218,67290.0,67282.0,0.00594443]
[1718272046397,0.01894851,67289.0,67283.0,0.003]
[1718272046801,0.01725233,67289.0,67282.0,0.004]
[1718272047029,0.01725233,67289.0,67279.0,0.14431993]
[1718272047246,0.01725233,67289.0,67283.0,0.006]
[1718272047457,0.01894851,67289.0,67283.0,0.006]
[1718272047628,0.01894851,67289.0,67283.0,0.003]
[1718272047834,0.01725233,67289.0,67283.0,0.003]
[1718272048041,0.01725233,67289.0,67283.0,0.006]
[1718272048244,0.01894851,67289.0,67283.0,0.006]
[1718272048456,0.00169618,67287.0,67283.0,0.006]
[1718272048653,0.00169618,67287.0,67283.0,0.003]
[1718272048861,0.01725233,67289.0,67283.0,0.003]
[1718272048862,0.00169618,67286.0,67283.0,0.003]
[1718272049070,0.01894701,67286.0,67283.0,0.003]
[1718272049287,0.00169618,67287.0,67282.0,0.004]
[1718272049503,0.01725083,67285.0,67279.0,0.14431993]
[1718272049715,0.14734218,67290.0,67279.0,0.14431993]
[1718272049933,0.01725083,67284.0,67279.0,0.14431993]
[1718272050350,0.14734218,67290.0,67283.0,0.003]
[1718272050597,0.00169618,67289.0,67283.0,0.005]
[1718272050795,0.00169618,67289.0,67283.0,0.002]
[1718272050998,0.14734218,67290.0,67283.0,0.002]
[1718272051962,0.145646,67290.0,67279.0,0.14431993]
[1718272052172,0.145646,67290.0,67279.0,0.14831993]
[1718272052580,0.14734218,67290.0,67279.0,0.14831993]
[1718272052786,0.145646,67290.0,67279.0,0.14431993]
[1718272053215,0.217746,67290.0,67280.0,0.06085351]
[1718272053426,0.217746,67290.0,67282.0,0.00887263]
[1718272053427,0.145646,67290.0,67282.0,0.00887263]
[1718272053607,0.000946,67290.0,67284.0,0.1416]
[1718272053806,0.000946,67290.0,67285.0,0.00384492]
[1718272054470,0.000946,67290.0,67286.0,0.14431993]
[1718272054647,0.000946,67290.0,67287.0,0.0038448]
[1718272055491,0.000946,67290.0,67288.0,0.00594391]
[1718272056507,0.000946,67290.0,67286.0,0.14431993]
[1718272058232,0.00264218,67290.0,67286.0,0.14731993]
[1718272058442,0.00169618,67289.0,67286.0,0.14731993]
[1718272058600,0.000946,67290.0,67286.0,0.14731993]
[1718272059247,0.000946,67290.0,67286.0,0.15031993]
[1718272059736,0.000946,67290.0,67286.0,0.14731993]
[1718272059867,0.000946,67290.0,67286.0,0.14431993]
[1718272060068,0.000946,67290.0,67286.0,0.14631993]
[1718272060445,0.01725738,67289.0,67286.0,0.14831993]
[1718272060663,0.01725738,67289.0,67286.0,0.14631993]
[1718272060873,0.000946,67290.0,67286.0,0.14831993]
[1718272061267,0.01725738,67289.0,67286.0,0.14831993]
[1718272061627,0.000946,67290.0,67286.0,0.14631993]
[1718272061828,0.00264218,67290.0,67286.0,0.14431993]
[1718272062040,0.01725738,67289.0,67286.0,0.14431993]
[1718272062246,0.01725738,67289.0,67286.0,0.14631993]
[1718272062447,0.082,67287.0,67286.0,0.14631993]
[1718272062625,0.082,67287.0,67286.0,0.14431993]
[1718272062827,0.09926677,67287.0,67277.0,0.04447487]
[1718272063169,0.09926677,67287.0,67276.0,0.47825]
[1718272063170,0.082,67287.0,67286.0,0.001]
[1718272063311,0.082,67287.0,67286.0,0.002436]
[1718272063513,0.082,67287.0,67278.0,0.14729243]
[1718272063721,0.082,67287.0,67279.0,0.06087298]
[1718272064109,0.000946,67289.0,67282.0,0.141]
[1718272064287,0.000946,67289.0,67283.0,0.00297227]
[1718272064612,0.000946,67289.0,67284.0,0.06086899]
[1718272065533,0.000946,67289.0,67283.0,0.00297227]
[1718272065782,0.000946,67289.0,67284.0,0.0608965]
[1718272066524,0.000946,67289.0,67283.0,0.00297227]
[1718272066728,0.000946,67289.0,67285.0,0.06089679]
[1718272066896,0.000946,67289.0,67283.0,0.00297227]
[1718272067099,0.000946,67289.0,67284.0,0.06089218]
[1718272068038,0.000946,67289.0,67285.0,0.14729211]
[1718272068211,0.000946,67289.0,67286.0,0.06089218]
[1718272068423,0.000946,67289.0,67287.0,0.00297209]
[1718272071052,0.000946,67289.0,67287.0,0.00697209]
[1718272073400,0.000946,67289.0,67287.0,0.00668709]
[1718272074875,0.000946,67289.0,67287.0,0.00816422]
[1718272075389,0.01725497,67288.0,67287.0,0.00816422]
[1718272076171,0.01725497,67288.0,67287.0,0.00616422]
[1718272076377,0.01725497,67288.0,67287.0,0.00416422]
[1718272076584,0.01725497,67288.0,67287.0,0.00616422]
[1718272076744,0.01725497,67288.0,67287.0,0.00816422]
[1718272076948,0.01725497,67288.0,67287.0,0.00994405]
[1718272077152,0.000946,67289.0,67287.0,0.00994405]
[1718272077573,0.01725497,67288.0,67287.0,0.00994405]
[1718272077772,0.000946,67289.0,67287.0,0.00994405]
[1718272077992,0.01725497,67288.0,67287.0,0.00994405]
[1718272078409,0.000946,67289.0,67287.0,0.00794405]
[1718272078560,0.01725497,67288.0,67287.0,0.00794405]
[1718272078760,0.000946,67289.0,67287.0,0.00994405]
[1718272078971,0.01725497,67288.0,67287.0,0.00794405]
[1718272079180,0.000946,67289.0,67287.0,0.00794405]
[1718272079380,0.01725497,67288.0,67287.0,0.15426398]
[1718272079588,0.000946,67289.0,67287.0,0.15426398]
[1718272079796,0.000946,67289.0,67287.0,0.15226398]
[1718272080009,0.01725497,67288.0,67287.0,0.15026398]
[1718272080208,0.000946,67289.0,67287.0,0.15026398]
[1718272080412,0.01725497,67288.0,67287.0,0.15026398]
[1718272080612,0.01725497,67288.0,67287.0,0.15226398]
[1718272080828,0.000946,67289.0,67287.0,0.15426398]
[1718272081237,0.000946,67289.0,67287.0,0.15226398]
[1718272081434,0.01725497,67288.0,67287.0,0.15226398]
[1718272081648,0.01725497,67288.0,67287.0,0.15426398]
[1718272081905,0.000946,67289.0,67287.0,0.15426398]
[1718272082097,0.01725497,67288.0,67287.0,0.15226398]
[1718272082308,0.000946,67289.0,67287.0,0.15226398]
[1718272082532,0.01725497,67288.0,67287.0,0.15426398]
[1718272082779,0.000946,67289.0,67287.0,0.14831993]
[1718272082995,0.000946,67289.0,67287.0,0.14631993]
[1718272083205,0.01725497,67288.0,67287.0,0.14431993]
[1718272083408,0.01725497,67288.0,67287.0,0.14603493]
[1718272083633,0.01725497,67288.0,67287.0,0.14803493]
[1718272084065,0.01725497,67288.0,67287.0,0.14603493]
[1718272084476,0.01725497,67288.0,67287.0,0.14803493]
[1718272085735,0.01725497,67288.0,67287.0,0.004]
[1718272085978,0.15825497,67288.0,67287.0,0.002]
[1718272086198,0.15995115,67288.0,67287.0,0.002]
[1718272086409,0.15995115,67288.0,67287.0,0.004]
[1718272086824,0.15825497,67288.0,67279.0,0.0721]
[1718272087034,0.15825497,67288.0,67280.0,0.14431993]
[1718272087185,0.15825497,67288.0,67287.0,0.004]
[1718272087186,0.141,67288.0,67287.0,0.004]
[1718272087781,0.15824822,67288.0,67287.0,0.002]
[1718272088603,0.15824822,67288.0,67280.0,0.14431993]
[1718272088993,0.141,67288.0,67280.0,0.14431993]
[1718272089213,0.141,67288.0,67280.0,0.14575256]
[1718272089433,0.141,67288.0,67282.0,0.08097263]
[1718272089651,0.141,67288.0,67283.0,0.00198511]
[1718272090079,0.01724541,67287.0,67284.0,0.15319256]
[1718272090305,0.01724541,67287.0,67285.0,0.08295768]
[1718272090533,0.01724541,67287.0,67286.0,0.15319256]
[1718272090756,0.000946,67289.0,67286.0,0.15319256]
[1718272092327,0.000946,67289.0,67288.0,0.00887263]
[1718272092593,0.000946,67289.0,67288.0,0.22980706]
[1718272092844,0.000946,67289.0,67288.0,0.31884903]
[1718272093057,0.000946,67289.0,67288.0,0.22980706]
[1718272093266,0.000946,67289.0,67288.0,0.39241879]
[1718272093472,0.000946,67289.0,67288.0,0.84835479]
[1718272093675,0.000946,67289.0,67288.0,0.89835479]
[1718272094552,0.000946,67289.0,67288.0,0.79835479]
[1718272094754,0.000946,67289.0,67288.0,0.79935479]
[1718272095298,0.000946,67289.0,67288.0,0.84935479]
[1718272095509,0.000946,67289.0,67288.0,0.94935479]
[1718272096274,0.000946,67289.0,67288.0,0.96335479]
[1718272096481,0.000946,67289.0,67288.0,0.98018756]
[1718272096932,0.000946,67289.0,67288.0,0.97635479]
[1718272097252,0.000946,67289.0,67288.0,0.89418756]
[1718272097467,0.000946,67289.0,67288.0,0.87635479]
[1718272097602,0.000946,67289.0,67288.0,0.80425479]
[1718272097815,0.000946,67289.0,67288.0,0.87635479]
[1718272098010,0.000946,67289.0,67288.0,0.97635479]
[1718272098482,0.000946,67289.0,67288.0,0.99418756]
[1718272099607,0.000946,67289.0,67288.0,0.97635479]
[1718272100689,0.000946,67289.0,67288.0,1.09961443]
[1718272101146,0.000746,67289.0,67288.0,0.99509993]
[1718272101343,0.000746,67289.0,67288.0,1.01299311]
[1718272101966,0.000746,67289.0,67288.0,1.11299311]
[1718272102314,0.000746,67289.0,67288.0,1.18400686]
[1718272102803,0.000746,67289.0,67288.0,1.18400801]
[1718272103337,0.000746,67289.0,67288.0,1.18372301]
[1718272103937,0.000746,67289.0,67288.0,1.13372301]
[1718272104156,0.000746,67289.0,67288.0,1.18372301]
[1718272104799,0.000746,67289.0,67288.0,1.12932575]
[1718272105275,0.000746,67289.0,67288.0,1.20142575]
[1718272106219,0.000746,67289.0,67288.0,1.20142581]
[1718272107139,0.000746,67289.0,67288.0,1.20140344]
[1718272107362,0.000746,67289.0,67288.0,1.11252118]
[1718272108169,0.000746,67289.0,67288.0,1.20140344]
[1718272108493,0.000746,67289.0,67288.0,1.20139812]
[1718272110412,0.000746,67289.0,67288.0,1.11252118]
[1718272110845,0.000746,67289.0,67288.0,1.23578419]
[1718272111062,0.000746,67289.0,67288.0,1.0125211]
[1718272111230,0.000746,67289.0,67288.0,1.0506211]
[1718272112029,0.000746,67289.0,67288.0,0.9506211]
[1718272112265,0.000746,67289.0,67288.0,1.0506211]
[1718272113593,0.000746,67289.0,67288.0,1.0503361]
[1718272114452,0.000746,67289.0,67288.0,1.05033249]
[1718272115476,0.000746,67289.0,67288.0,0.9727323]
[1718272115677,0.000746,67289.0,67288.0,1.0514323]
[1718272116691,0.000746,67289.0,67288.0,1.15812489]
[1718272117099,0.000746,67289.0,67288.0,1.06926494]
[1718272117784,0.000746,67289.0,67288.0,1.15812431]
[1718272118000,0.000746,67289.0,67288.0,1.08602431]
[1718272118196,0.000746,67289.0,67288.0,1.15812431]
[1718272118400,0.000746,67289.0,67288.0,1.02258893]
[1718272118821,0.000746,67289.0,67288.0,0.95048893]
[1718272119028,0.000746,67289.0,67288.0,0.95156273]
[1718272119223,0.000746,67289.0,67288.0,1.03372956]
[1718272119485,0.000746,67289.0,67288.0,1.12258893]
[1718272122203,0.000746,67289.0,67288.0,1.03373058]
[1718272122763,0.000746,67289.0,67288.0,1.09443058]
[1718272123186,0.000746,67289.0,67288.0,1.11291403]
[1718272123386,0.000746,67289.0,67288.0,1.11235003]
[1718272123990,0.000746,67289.0,67288.0,1.11230991]
[1718272124395,0.000746,67289.0,67288.0,1.1577733]
[1718272124951,0.000746,67289.0,67288.0,1.1437733]
[1718272125637,0.000746,67289.0,67288.0,1.15442432]
[1718272126155,0.000746,67289.0,67288.0,1.14042432]
[1718272126313,0.000746,67289.0,67288.0,1.15442432]
[1718272126506,0.000746,67289.0,67288.0,1.16927402]
[1718272126698,0.000746,67289.0,67288.0,1.26927402]
[1718272127307,0.000946,67295.0,67294.0,0.50723451]
[1718272127506,0.000946,67295.0,67294.0,0.98028989]
[1718272127705,0.000946,67295.0,67294.0,1.13683387]
[1718272127905,0.000946,67295.0,67294.0,1.02576023]
[1718272128334,0.000946,67295.0,67294.0,1.68205968]
[1718272128735,0.000946,67295.0,67294.0,1.68202334]
[1718272128936,0.000946,67295.0,67294.0,1.67174393]
[1718272129168,0.009427,67306.0,67304.0,0.20713451]
[1718272129384,0.00793663,67305.0,67304.0,0.79198789]
[1718272129603,0.00793663,67305.0,67304.0,0.93746094]
[1718272129810,0.00793663,67305.0,67304.0,0.87186583]
[1718272130023,0.009427,67306.0,67305.0,0.36363451]
[1718272130247,0.009427,67306.0,67305.0,0.77665972]
[1718272130456,0.009427,67306.0,67305.0,0.73120437]
[1718272130689,0.009427,67306.0,67305.0,0.80330437]
[1718272130921,0.009427,67306.0,67305.0,0.80285438]
[1718272131593,0.009427,67306.0,67305.0,0.83085438]
[1718272132025,0.009427,67306.0,67305.0,0.85395891]
[1718272133244,0.009427,67306.0,67305.0,1.35395891]
[1718272133444,0.009427,67306.0,67305.0,1.35367391]
[1718272134037,0.009427,67306.0,67305.0,1.33056938]
[1718272134928,0.009427,67306.0,67305.0,1.20776944]
[1718272135112,0.009427,67306.0,67305.0,1.3307611]
[1718272135305,0.009427,67306.0,67305.0,1.25415069]
[1718272135667,0.009427,67306.0,67305.0,1.35386569]
[1718272135880,0.009427,67306.0,67305.0,1.35409821]
[1718272136851,0.009427,67306.0,67305.0,1.35409832]
[1718272137278,0.009427,67306.0,67305.0,1.46509996]
[1718272137482,0.009427,67306.0,67305.0,1.35409832]
[1718272138530,0.009427,67306.0,67305.0,1.28199832]
[1718272138738,0.009427,67306.0,67305.0,1.35409832]
[1718272139368,0.009427,67306.0,67305.0,1.33099373]
[1718272140406,0.009427,67306.0,67305.0,1.23127873]
[1718272140584,0.075027,67306.0,67305.0,1.15917873]
[1718272140784,0.075027,67306.0,67305.0,1.23127873]
[1718272140988,0.075027,67306.0,67305.0,1.29787287]
[1718272141396,0.075027,67306.0,67305.0,1.17464858]
[1718272141643,0.075027,67306.0,67305.0,1.29707751]
[1718272141848,0.075027,67306.0,67305.0,1.29707717]
[1718272142461,0.075027,67306.0,67305.0,1.32403307]
[1718272142880,0.009427,67306.0,67305.0,1.32403307]
[1718272143507,0.009427,67306.0,67305.0,1.42346307]
[1718272144322,0.009427,67306.0,67305.0,1.25715479]
[1718272144755,0.009427,67306.0,67305.0,0.29474938]
[1718272144972,0.156627,67306.0,67305.0,0.29474938]
[1718272145174,0.17407296,67306.0,67305.0,0.29474938]
[1718272145388,0.17407296,67306.0,67305.0,0.17231993]
[1718272145389,0.17779226,67306.0,67305.0,0.17231993]
[1718272146456,0.17779226,67306.0,67305.0,0.028]
[1718272146868,0.17779226,67306.0,67305.0,0.014]
[1718272147077,0.17779226,67306.0,67305.0,0.028]
[1718272147280,0.0772,67302.0,67298.0,0.0721]
[1718272147487,0.1408,67300.0,67299.0,0.14431993]
[1718272148032,0.15824596,67300.0,67299.0,0.14431993]
[1718272148852,0.16196526,67300.0,67299.0,0.14431993]
[1718272149116,0.16196526,67300.0,67299.0,0.15831993]
[1718272149278,0.15824596,67300.0,67299.0,0.15831993]
[1718272149824,0.15924596,67300.0,67299.0,0.17231993]
[1718272150204,0.15824596,67300.0,67299.0,0.15831993]
[1718272150433,0.15824596,67300.0,67299.0,0.14431993]
[1718272150614,0.15924596,67300.0,67299.0,0.15331993]
[1718272150860,0.16053096,67300.0,67299.0,0.16531993]
[1718272151066,0.15953096,67300.0,67299.0,0.15331993]
[1718272151279,0.15080596,67300.0,67299.0,0.14431993]
[1718272151714,0.15552526,67300.0,67299.0,0.14631993]
[1718272152810,0.15652526,67300.0,67299.0,0.15531993]
[1718272153247,0.15652526,67300.0,67299.0,0.14631993]
[1718272153429,0.15552526,67300.0,67299.0,0.14631993]
[1718272153690,0.15452526,67300.0,67299.0,0.14415914]
[1718272153870,0.15552526,67300.0,67299.0,0.15044034]
[1718272154369,0.15552526,67300.0,67299.0,0.14744034]
[1718272154571,0.15552526,67300.0,67299.0,0.13200475]
[1718272155839,0.15452526,67300.0,67299.0,0.12600475]
[1718272156305,0.15452526,67300.0,67299.0,0.12900475]
[1718272157382,0.15080596,67300.0,67299.0,0.12900475]
[1718272157832,0.15452526,67300.0,67299.0,0.12900475]
[1718272158054,0.15080596,67300.0,67299.0,0.12900475]
[1718272158270,0.15109096,67300.0,67299.0,0.12900475]
[1718272158496,0.15080596,67300.0,67299.0,0.12900475]
[1718272159141,0.15452526,67300.0,67299.0,0.12900475]
[1718272159768,0.15452526,67300.0,67299.0,0.11052145]
[1718272161039,0.15481026,67300.0,67299.0,0.006]
[1718272161216,0.22691026,67300.0,67299.0,0.006]
[1718272161766,0.1496193,67289.0,67288.0,0.00086]
[1718272162027,0.16696137,67289.0,67288.0,0.00086]
[1718272162233,0.16324207,67289.0,67288.0,0.00086]
[1718272162694,0.16696137,67289.0,67288.0,0.00086]
[1718272164475,0.000285,67282.0,67277.0,0.07037611]
[1718272164680,0.000285,67281.0,67278.0,0.14431993]
[1718272164902,0.000285,67279.0,67278.0,0.14431993]
[1718272165108,0.000285,67281.0,67278.0,0.14431993]
[1718272165320,0.000285,67283.0,67278.0,0.14431993]
[1718272165706,0.001285,67282.0,67278.0,0.14431993]
[1718272165905,0.000285,67281.0,67278.0,0.14431993]
[1718272166357,0.001,67282.0,67278.0,0.14431993]
[1718272166568,0.001,67282.0,67278.0,0.21641993]
[1718272166758,0.002,67282.0,67278.0,0.21641993]
[1718272167201,0.000285,67286.0,67278.0,0.21641993]
[1718272167403,0.001,67281.0,67278.0,0.22641993]
[1718272167604,0.001,67281.0,67278.0,0.23641993]
[1718272167847,0.001,67281.0,67278.0,0.22641993]
[1718272168063,0.01731462,67280.0,67278.0,0.22641993]
[1718272168282,0.001,67281.0,67279.0,0.14813451]
[1718272168499,0.001,67282.0,67280.0,0.14431993]
[1718272168715,0.001,67282.0,67280.0,0.21641993]
[1718272168938,0.001,67281.0,67280.0,0.21641993]
[1718272169748,0.001,67281.0,67280.0,0.33969893]
[1718272170102,0.001,67286.0,67282.0,0.00713451]
[1718272170303,0.1467,67287.0,67283.0,0.22355444]
[1718272170515,0.00057,67298.0,67287.0,0.20713451]
[1718272170745,0.136685,67299.0,67291.0,0.0721]
[1718272171005,0.136685,67299.0,67292.0,0.14431993]
[1718272171167,0.000285,67295.0,67292.0,0.14431993]
[1718272171368,0.136685,67299.0,67292.0,0.14431993]
[1718272171700,0.000285,67298.0,67292.0,0.14431993]
[1718272171910,0.000285,67298.0,67293.0,0.0721]
[1718272172149,0.1398343,67299.0,67295.0,0.0721]
[1718272172150,0.1364,67299.0,67295.0,0.0721]
[1718272172360,0.1364,67299.0,67296.0,0.14431993]
[1718272172361,0.001,67299.0,67296.0,0.14431993]
[1718272172567,0.001,67299.0,67297.0,0.0721]
[1718272172775,0.001,67299.0,67298.0,0.14431993]
[1718272173668,0.0037193,67299.0,67298.0,0.14431993]
[1718272173884,0.000285,67295.0,67292.0,0.004]
[1718272174087,0.1429,67294.0,67293.0,0.14431993]
[1718272174300,0.16026603,67294.0,67293.0,0.14431993]
[1718272175334,0.16026603,67294.0,67293.0,0.14631993]
[1718272176011,0.16026603,67294.0,67293.0,0.002]
[1718272176604,0.000285,67293.0,67286.0,0.5367426]
[1718272176806,0.000285,67292.0,67287.0,0.26759683]
[1718272177010,0.1429,67294.0,67288.0,0.1232769]
[1718272177221,0.1429,67294.0,67293.0,0.004]
[1718272177732,0.1429,67294.0,67293.0,0.001]
[1718272177946,0.000285,67299.0,67293.0,0.001]
[1718272178122,0.0637,67296.0,67289.0,0.22355444]